fUST/lending_fUST_20240512
["ID","MTS","AMOUNT","RATE_DAILY","PERIOD"]
[326850021,1715509903576,-500.0,0.00071232,120]
[326850022,1715509903586,-2169.41,0.00071232,120]
[326850023,1715509903595,-658.6,0.00071232,120]
[326850024,1715509903605,-926.02,0.00071232,120]
[326850025,1715509903614,-2031.16,0.00071232,120]
[326850026,1715509903623,-500.0,0.00071232,120]
[326850027,1715509903634,-1300.61,0.00071232,120]
[326850028,1715509903644,-4158.51,0.00071232,120]
[326850029,1715509903654,-1707.07,0.00071232,120]
[326850030,1715509903665,-747.04,0.00071232,120]
[326850031,1715509903673,-500.0,0.00071232,120]
[326850032,1715509903682,-610.04,0.00071232,120]
[326850033,1715509903691,-809.09,0.00071232,120]
[326850034,1715509903701,-616.93,0.00071232,120]
[326850035,1715509903711,-555.14,0.00071232,120]
[326850036,1715509903721,-663.17,0.00071232,60]
[326850037,1715509903730,-1965.65,0.00071232,120]
[326850038,1715509903739,-1720.11,0.00071232,120]
[326850039,1715509903865,-500.0,0.00071232,120]
[326850040,1715509903875,-1258.86,0.00071232,7]
[326850041,1715509903884,-531.16,0.00071232,120]
[326850042,1715509903893,-289.05844201,0.00071232,120]
[326850043,1715509903902,-1275.8,0.00071232,120]
[326850044,1715509903913,-1330.34,0.00071232,120]
[326850045,1715509903922,-1477.44,0.00071232,120]
[326850046,1715509903931,-500.0,0.00071232,120]
[326850047,1715509903940,-330.4510312,0.00071232,120]
[326850048,1715509903948,-1415.41,0.00071232,120]
[326850049,1715509903958,-790.3,0.00071232,120]
[326850050,1715509903967,-500.0,0.00071232,120]
[326850051,1715509903976,-1299.65,0.00071232,120]
[326850052,1715509903986,-631.96,0.00071232,120]
[326850053,1715509903995,-775.43,0.00071232,120]
[326850054,1715509904005,-500.0,0.00071232,120]
[326850055,1715509904014,-4428.92,0.00071232,120]
[326850056,1715509904024,-974.56,0.00071232,120]
[326850057,1715509904033,-1052.97,0.00071232,120]
[326850058,1715509904042,-3584.43,0.00071232,120]
[326850059,1715509904051,-721.17,0.00071232,120]
[326850060,1715509904060,-661.04,0.00071232,120]
[326850061,1715509904069,-625.85,0.00071232,120]
[326850062,1715509904079,-614.26,0.00071232,120]
[326850063,1715509904088,-980.18,0.00071232,120]
[326850064,1715509904098,-1131.83,0.00071232,120]
[326850065,1715509904107,-583.64,0.00071232,120]
[326850066,1715509904117,-513.88,0.00071232,120]
[326850067,1715509904126,-5121.64,0.00071232,120]
[326850068,1715509904135,-2410.3,0.00071232,120]
[326850069,1715509904145,-1457.89,0.00071232,120]
[326850070,1715509904154,-719.29,0.00071232,120]
[326850071,1715509904165,-1228.7,0.00071232,120]
[326850072,1715509904174,-500.0,0.00071232,120]
[326850073,1715509904183,-1264.94,0.00071232,120]
[326850074,1715509904192,-1513.78,0.00071232,120]
[326850075,1715509904203,-673.28,0.00071232,120]
[326850076,1715509904213,-694.76,0.00071232,120]
[326850077,1715509904222,-1272.39,0.00071232,120]
[326850078,1715509904231,-2272.31,0.00071232,120]
[326850079,1715509904241,-11483.2,0.00071232,120]
[326850080,1715509904250,-500.0,0.00071232,7]
[326850081,1715509904259,-606.15,0.00071232,120]
[326850082,1715509904267,-765.03,0.00071232,120]
[326850083,1715509904276,-910.45,0.00071232,120]
[326850084,1715509904287,-1594.77,0.00071232,120]
[326850085,1715509904297,-749.73,0.00071232,120]
[326850086,1715509904306,-1094.1,0.00071232,120]
[326850087,1715509904315,-760.68,0.00071232,120]
[326850088,1715509904324,-1439.15,0.00071232,120]
[326850089,1715509904333,-728.36,0.00071232,120]
[326850090,1715509904343,-554.07,0.00071232,120]
[326850091,1715509904352,-851.93,0.00071232,120]
[326850092,1715509904361,-21061.66,0.00071232,120]
[326850093,1715509904370,-1275.67,0.00071232,120]
[326850094,1715509904380,-697.89,0.00071232,120]
[326850095,1715509904389,-1584.34,0.00071232,120]
[326850096,1715509904398,-1080.54,0.00071232,120]
[326850097,1715509904407,-285.164937,0.00071319,120]
[326850098,1715509904416,-151.0,0.00071808,120]
[326850099,1715509904426,-151.0,0.0007211,120]
[326850100,1715509904435,-167.361754,0.00072172,120]
[326850101,1715509904444,-500.0,0.00072328,120]
[326850102,1715509904453,-792.18,0.00072328,120]
[326850103,1715509904462,-700.0,0.00072328,120]
[326850104,1715509904471,-500.0,0.00072328,120]
[326850105,1715509904480,-500.0,0.00072328,120]
[326850106,1715509904489,-687.88,0.00072328,120]
[326850107,1715509904498,-1184.42,0.00072328,120]
[326850108,1715509904507,-622.05,0.00072328,120]
[326850109,1715509904516,-500.0,0.00072328,120]
[326850110,1715509904525,-1188.88,0.00072328,120]
[326850111,1715509904534,-664.65,0.00072328,120]
[326850112,1715509904543,-706.45,0.00072328,120]
[326850113,1715509904553,-589.94,0.00072328,120]
[326850114,1715509904563,-500.0,0.00072328,120]
[326850115,1715509904572,-718.87,0.00072328,120]
[326850116,1715509904581,-668.81,0.00072328,120]
[326850117,1715509904590,-1198.11,0.00072328,120]
[326850118,1715509904599,-859.74,0.00072328,120]
[326850119,1715509904607,-1019.78,0.00072328,120]
[326850120,1715509904617,-1222.61,0.00072328,120]
[326850121,1715509904626,-500.0,0.00072328,120]
[326850122,1715509904635,-1076.09,0.00072328,4]
[326850123,1715509904644,-777.18,0.00072328,120]
[326850124,1715509904654,-623.85,0.00072328,120]
[326850125,1715509904664,-300.0,0.00072328,7]
[326850126,1715509904673,-879.42,0.00072328,120]
[326850127,1715509904682,-500.0,0.00072328,120]
[326850128,1715509904691,-1022.56,0.00072328,120]
[326850129,1715509904701,-1415.7,0.00072328,120]
[326850130,1715509904710,-702.94,0.00072328,120]
[326850131,1715509904720,-676.96,0.00072328,120]
[326850132,1715509904730,-1146.59,0.00072328,120]
[326850133,1715509904740,-846.45,0.00072328,120]
[326850134,1715509904749,-506.08,0.00072328,120]
[326850135,1715509904758,-694.21,0.00072328,120]
[326850136,1715509904767,-534.57,0.00072328,120]
[326850137,1715509904776,-628.13,0.00072328,120]
[326850138,1715509904785,-563.98,0.00072328,120]
[326850139,1715509904794,-531.76065466,0.00072328,120]
[326850140,1715509904804,-500.0,0.00072328,120]
[326850141,1715509904813,-1333.29,0.00072328,120]
[326850142,1715509904822,-2080.97,0.00072328,120]
[326850143,1715509904832,-697.5,0.00072328,120]
[326850144,1715509904841,-500.0,0.00072328,120]
[326850145,1715509904850,-1146.84,0.00072328,120]
[326850146,1715509904859,-500.0,0.00072328,120]
[326850147,1715509904868,-1062.31,0.00072328,120]
[326850148,1715509904877,-887.25,0.00072328,120]
[326850149,1715509904886,-500.0,0.00072328,120]
[326850150,1715509904894,-884.99,0.00072328,120]
[326850151,1715509904903,-1945.84,0.00072328,120]
[326850152,1715509904913,-1101.29,0.00072328,120]
[326850153,1715509904922,-683.11,0.00072328,120]
[326850154,1715509904931,-472.80552674,0.00072328,120]
[326850155,1715509904940,-634.75,0.00072328,120]
[326850156,1715509904949,-1202.07,0.00072328,120]
[326850157,1715509904958,-652.77,0.00072328,120]
[326850158,1715509904967,-665.8,0.00072328,120]
[326850159,1715509904977,-2405.12,0.00072328,120]
[326850160,1715509904986,-1296.67,0.00072328,120]
[326850161,1715509904995,-500.0,0.00072328,120]
[326850162,1715509905004,-515.15,0.00072328,120]
[326850163,1715509905013,-1711.77,0.00072328,120]
[326850164,1715509905022,-218.37617363,0.00072328,120]
[326850165,1715509905031,-634.68,0.00072328,120]
[326850166,1715509905041,-674.93,0.00072328,120]
[326850167,1715509905050,-669.18,0.00072328,120]
[326850168,1715509905060,-662.7,0.00072328,120]
[326850169,1715509905069,-672.84,0.00072328,120]
[326850170,1715509905080,-500.0,0.00072328,120]
[326850171,1715509905090,-1082.38,0.00072328,120]
[326850172,1715509905099,-500.0,0.00072328,120]
[326850173,1715509905110,-2510.37,0.00072328,120]
[326850174,1715509905119,-4167.16,0.00072328,120]
[326850175,1715509905128,-1216.89,0.00072328,7]
[326850176,1715509905138,-568.37,0.00072328,120]
[326850177,1715509905148,-634.17,0.00072328,120]
[326850178,1715509905158,-711.19,0.00072328,120]
[326850179,1715509905167,-645.64,0.00072328,120]
[326850180,1715509905176,-634.59,0.00072328,120]
[326850181,1715509905186,-522.61,0.00072328,120]
[326850182,1715509905196,-1199.73,0.00072328,120]
[326850183,1715509905208,-852.85,0.00072328,120]
[326850184,1715509905217,-500.0,0.00072328,120]
[326850185,1715509905226,-625.2,0.00072328,120]
[326850186,1715509905236,-728.74,0.00072328,120]
[326850187,1715509905245,-501.04,0.00072328,120]
[326850188,1715509905254,-588.33,0.00072328,120]
[326850189,1715509905263,-1576.44,0.00072328,120]
[326850190,1715509905272,-443.08,0.00072328,120]
[326850191,1715509905281,-642.78,0.00072328,120]
[326850192,1715509905290,-500.0,0.00072328,120]
[326850193,1715509905299,-1474.83,0.00072328,120]
[326850194,1715509905308,-500.0,0.00072328,120]
[326850195,1715509905318,-1138.94,0.00072328,120]
[326850196,1715509905327,-500.0,0.00072328,120]
[326850197,1715509905337,-2052.53,0.00072328,120]
[326850198,1715509905346,-3343.91,0.00072328,120]
[326850199,1715509905355,-500.0,0.00072328,120]
[326850200,1715509905365,-1280.34,0.00072328,120]
[326850201,1715509905374,-589.15,0.00072328,120]
[326850202,1715509905383,-990.89,0.00072328,120]
[326850203,1715509905392,-1022.63,0.00072328,120]
[326850204,1715509905402,-1377.96,0.00072328,120]
[326850205,1715509905411,-849.72,0.00072328,120]
[326850206,1715509905421,-353.40602675,0.00072328,120]
[326850207,1715509905430,-2169.41,0.00072328,120]
[326850208,1715509905439,-658.6,0.00072328,120]
[326850209,1715509905448,-926.02,0.00072328,120]
[326850210,1715509905457,-2031.16,0.00072328,120]
[326850211,1715509905466,-500.0,0.00072328,120]
[326850212,1715509905475,-1300.61,0.00072328,120]
[326850213,1715509905484,-4158.51,0.00072328,120]
[326850214,1715509905493,-1707.07,0.00072328,120]
[326850215,1715509905503,-747.04,0.00072328,120]
[326850216,1715509905512,-500.0,0.00072328,120]
[326850217,1715509905522,-610.04,0.00072328,120]
[326850218,1715509905531,-809.09,0.00072328,120]
[326850219,1715509905541,-616.93,0.00072328,120]
[326850220,1715509905550,-555.14,0.00072328,120]
[326850221,1715509905559,-663.17,0.00072328,60]
[326850222,1715509905568,-1965.65,0.00072328,120]
[326850223,1715509905577,-1720.11,0.00072328,120]
[326850224,1715509905586,-1258.86,0.00072328,7]
[326850225,1715509905595,-500.0,0.00072328,120]
[326850226,1715509905604,-531.16,0.00072328,120]
[326850227,1715509905613,-1275.8,0.00072328,120]
[326850228,1715509905622,-1330.34,0.00072328,120]
[326850229,1715509905631,-1477.44,0.00072328,120]
[326850230,1715509905640,-500.0,0.00072328,120]
[326850231,1715509905649,-1415.41,0.00072328,120]
[326850232,1715509905658,-790.3,0.00072328,120]
[326850233,1715509905668,-500.0,0.00072328,120]
[326850234,1715509905677,-1299.65,0.00072328,120]
[326850235,1715509905686,-631.96,0.00072328,120]
[326850236,1715509905695,-775.43,0.00072328,120]
[326850237,1715509905704,-500.0,0.00072328,120]
[326850238,1715509905713,-4428.92,0.00072328,120]
[326850239,1715509905723,-974.56,0.00072328,120]
[326850240,1715509905732,-1052.97,0.00072328,120]
[326850241,1715509905741,-3584.43,0.00072328,120]
[326850242,1715509905749,-721.17,0.00072328,120]
[326850243,1715509905758,-661.04,0.00072328,120]
[326850244,1715509905767,-625.85,0.00072328,120]
[326850245,1715509905776,-614.26,0.00072328,120]
[326850246,1715509905786,-980.18,0.00072328,120]
[326850247,1715509905795,-1131.83,0.00072328,120]
[326850248,1715509905805,-583.64,0.00072328,120]
[326850249,1715509905814,-513.88,0.00072328,120]
[326850250,1715509905824,-2410.3,0.00072328,120]
[326850251,1715509905944,-5121.64,0.00072328,120]
[326850252,1715509905954,-1457.89,0.00072328,120]
[326850253,1715509905963,-719.29,0.00072328,120]
[326850254,1715509905973,-1228.7,0.00072328,120]
[326850255,1715509905982,-500.0,0.00072328,120]
[326850256,1715509905991,-1264.94,0.00072328,120]
[326850257,1715509906000,-1513.78,0.00072328,120]
[326850258,1715509906010,-673.28,0.00072328,120]
[326850259,1715509906019,-694.76,0.00072328,120]
[326850260,1715509906028,-1272.39,0.00072328,120]
[326850261,1715509906038,-2272.31,0.00072328,120]
[326850262,1715509906047,-11483.2,0.00072328,120]
[326850263,1715509906056,-500.0,0.00072328,7]
[326850264,1715509906066,-606.15,0.00072328,120]
[326850265,1715509906075,-765.03,0.00072328,120]
[326850266,1715509906084,-910.45,0.00072328,120]
[326850267,1715509906093,-1594.77,0.00072328,120]
[326850268,1715509906102,-749.73,0.00072328,120]
[326850269,1715509906111,-1094.1,0.00072328,120]
[326850270,1715509906121,-760.68,0.00072328,120]
[326850271,1715509906130,-1439.15,0.00072328,120]
[326850272,1715509906139,-728.36,0.00072328,120]
[326850273,1715509906148,-554.07,0.00072328,120]
[326850274,1715509906158,-851.93,0.00072328,120]
[326850275,1715509906169,-21061.66,0.00072328,120]
[326850276,1715509906179,-1275.67,0.00072328,120]
[326850277,1715509906187,-697.89,0.00072328,120]
[326850278,1715509906201,-1584.34,0.00072328,120]
[326850279,1715509906210,-75000.0,0.0007245,120]
[326850280,1715509906219,-1688.0,0.000728,120]
[326850281,1715509906228,-1688.0,0.000728,120]
[326850282,1715509906237,-1688.0,0.000728,120]
[326850283,1715509906246,-1770.895,0.000728,120]
[326850284,1715509906256,-2500.0,0.00073,120]
[326850285,1715509906265,-151.0,0.00073288,120]
[326850286,1715509906276,-500.0,0.00073424,120]
[326850287,1715509906285,-792.18,0.00073424,120]
[326850288,1715509906294,-700.0,0.00073424,120]
[326850289,1715509906303,-472.60494423,0.00073424,120]
[326850290,1715509906312,-500.0,0.00073424,120]
[326850291,1715509906322,-687.88,0.00073424,120]
[326850292,1715509906331,-1184.42,0.00073424,120]
[326850293,1715509906340,-622.05,0.00073424,120]
[326850294,1715509906349,-500.0,0.00073424,120]
[326850295,1715509906358,-1188.88,0.00073424,120]
[326850296,1715509906368,-664.65,0.00073424,120]
[326850297,1715509906377,-706.45,0.00073424,120]
[326850298,1715509906386,-589.94,0.00073424,120]
[326850299,1715509906395,-185.19997252,0.00073424,120]
[326850300,1715509906404,-718.87,0.00073424,120]
[326850301,1715509906414,-668.81,0.00073424,120]
[326850302,1715509906424,-1198.11,0.00073424,120]
[326850303,1715509906432,-859.74,0.00073424,120]
[326850304,1715509906441,-1019.78,0.00073424,120]
[326850305,1715509906450,-1222.61,0.00073424,120]
[326850306,1715509906460,-500.0,0.00073424,120]
[326850307,1715509906470,-1076.09,0.00073424,4]
[326850308,1715509906478,-777.18,0.00073424,120]
[326850309,1715509906488,-623.85,0.00073424,120]
[326850310,1715509906497,-300.0,0.00073424,7]
[326850311,1715509906506,-879.42,0.00073424,120]
[326850312,1715509906515,-500.0,0.00073424,120]
[326850313,1715509906524,-1022.56,0.00073424,120]
[326850314,1715509906533,-1415.7,0.00073424,120]
[326850315,1715509906543,-702.94,0.00073424,120]
[326850316,1715509906552,-676.96,0.00073424,120]
[326850317,1715509906562,-1146.59,0.00073424,120]
[326850318,1715509906571,-846.45,0.00073424,120]
[326850319,1715509906581,-506.08,0.00073424,120]
[326850320,1715509906590,-694.21,0.00073424,120]
[326850321,1715509906600,-534.57,0.00073424,120]
[326850322,1715509906609,-628.13,0.00073424,120]
[326850323,1715509906619,-563.98,0.00073424,120]
[326850324,1715509906628,-500.0,0.00073424,120]
[326850325,1715509906638,-1333.29,0.00073424,120]
[326850326,1715509906647,-2080.97,0.00073424,120]
[326850327,1715509906656,-697.5,0.00073424,120]
[326850328,1715509906667,-496.79068718,0.00073424,120]
[326850329,1715509906676,-1146.84,0.00073424,120]
[326850330,1715509906685,-500.0,0.00073424,120]
[326850331,1715509906694,-1062.31,0.00073424,120]
[326850332,1715509906703,-887.25,0.00073424,120]
[326850333,1715509906713,-528.5377838,0.00073424,120]
[326850334,1715509906722,-884.99,0.00073424,120]
[326850335,1715509906731,-1945.84,0.00073424,120]
[326850336,1715509906741,-1101.29,0.00073424,120]
[326850337,1715509906751,-683.11,0.00073424,120]
[326850338,1715509906760,-634.75,0.00073424,120]
[326850339,1715509906770,-1202.07,0.00073424,120]
[326850340,1715509906779,-652.77,0.00073424,120]
[326850341,1715509906788,-665.8,0.00073424,120]
[326850342,1715509906798,-2405.12,0.00073424,120]
[326850343,1715509906808,-1296.67,0.00073424,120]
[326850344,1715509906818,-500.0,0.00073424,120]
[326850345,1715509906827,-515.15,0.00073424,120]
[326850346,1715509906836,-1711.77,0.00073424,120]
[326850347,1715509906846,-634.68,0.00073424,120]
[326850348,1715509906855,-674.93,0.00073424,120]
[326850349,1715509906864,-662.7,0.00073424,120]
[326850350,1715509906873,-669.18,0.00073424,120]
[326850351,1715509906883,-672.84,0.00073424,120]
[326850352,1715509906892,-500.0,0.00073424,120]
[326850353,1715509906902,-1082.38,0.00073424,120]
[326850354,1715509906911,-219.04036331,0.00073424,120]
[326850355,1715509906920,-2510.37,0.00073424,120]
[326850356,1715509906930,-4167.16,0.00073424,120]
[326850357,1715509906939,-1216.89,0.00073424,7]
[326850358,1715509906948,-568.37,0.00073424,120]
[326850359,1715509906958,-634.17,0.00073424,120]
[326850360,1715509906967,-711.19,0.00073424,120]
[326850361,1715509906977,-645.64,0.00073424,120]
[326850362,1715509906987,-634.59,0.00073424,120]
[326850363,1715509906996,-522.61,0.00073424,120]
[326850364,1715509907006,-1199.73,0.00073424,120]
[326850365,1715509907016,-852.85,0.00073424,120]
[326850366,1715509907025,-500.0,0.00073424,120]
[326850367,1715509907034,-625.2,0.00073424,120]
[326850368,1715509907044,-728.74,0.00073424,120]
[326850369,1715509907053,-501.04,0.00073424,120]
[326850370,1715509907063,-588.33,0.00073424,120]
[326850371,1715509907072,-1576.44,0.00073424,120]
[326850372,1715509907082,-642.78,0.00073424,120]
[326850373,1715509907092,-500.0,0.00073424,120]
[326850374,1715509907101,-1474.83,0.00073424,120]
[326850375,1715509907110,-500.0,0.00073424,120]
[326850376,1715509907119,-1138.94,0.00073424,120]
[326850377,1715509907129,-500.0,0.00073424,120]
[326850378,1715509907138,-2052.53,0.00073424,120]
[326850379,1715509907147,-3343.91,0.00073424,120]
[326850380,1715509907157,-500.0,0.00073424,120]
[326850381,1715509907168,-1280.34,0.00073424,120]
[326850382,1715509907177,-589.15,0.00073424,120]
[326850383,1715509907186,-990.89,0.00073424,120]
[326850384,1715509907196,-1022.63,0.00073424,120]
[326850385,1715509907210,-1377.96,0.00073424,120]
[326850386,1715509907220,-849.72,0.00073424,120]
[326850387,1715509907229,-2169.41,0.00073424,120]
[326850388,1715509907237,-658.6,0.00073424,120]
[326850389,1715509907246,-926.02,0.00073424,120]
[326850390,1715509907256,-2031.16,0.00073424,120]
[326850391,1715509907265,-500.0,0.00073424,120]
[326850392,1715509907274,-1300.61,0.00073424,120]
[326850393,1715509907283,-4158.51,0.00073424,120]
[326850394,1715509907292,-1707.07,0.00073424,120]
[326850395,1715509907301,-747.04,0.00073424,120]
[326850396,1715509907310,-500.0,0.00073424,120]
[326850397,1715509907319,-610.04,0.00073424,120]
[326850398,1715509907328,-809.09,0.00073424,120]
[326850399,1715509907336,-616.93,0.00073424,120]
[326850400,1715509907345,-555.14,0.00073424,120]
[326850401,1715509907354,-663.17,0.00073424,60]
[326850402,1715509907363,-1965.65,0.00073424,120]
[326850403,1715509907371,-1720.11,0.00073424,120]
[326850404,1715509907380,-1258.86,0.00073424,7]
[326850405,1715509907389,-500.0,0.00073424,120]
[326850406,1715509907399,-531.16,0.00073424,120]
[326850407,1715509907407,-1275.8,0.00073424,120]
[326850408,1715509907418,-1330.34,0.00073424,120]
[326850409,1715509907426,-1477.44,0.00073424,120]
[326850410,1715509907436,-500.0,0.00073424,120]
[326850411,1715509907445,-1415.41,0.00073424,120]
[326850412,1715509907454,-790.3,0.00073424,120]
[326850413,1715509907463,-500.0,0.00073424,120]
[326850414,1715509907472,-1299.65,0.00073424,120]
[326850415,1715509907481,-631.96,0.00073424,120]
[326850416,1715509907490,-775.43,0.00073424,120]
[326850417,1715509907499,-500.0,0.00073424,120]
[326850418,1715509907508,-4428.92,0.00073424,120]
[326850419,1715509907517,-974.56,0.00073424,120]
[326850420,1715509907526,-1052.97,0.00073424,120]
[326850421,1715509907534,-3584.43,0.00073424,120]
[326850422,1715509907543,-721.17,0.00073424,120]
[326850423,1715509907552,-661.04,0.00073424,120]
[326850424,1715509907560,-625.85,0.00073424,120]
[326850425,1715509907570,-614.26,0.00073424,120]
[326850426,1715509907579,-980.18,0.00073424,120]
[326850427,1715509907587,-1131.83,0.00073424,120]
[326850428,1715509907596,-583.64,0.00073424,120]
[326850429,1715509907605,-513.88,0.00073424,120]
[326850430,1715509907614,-2410.3,0.00073424,120]
[326850431,1715509907622,-5121.64,0.00073424,120]
[326850432,1715509907631,-1457.89,0.00073424,120]
[326850433,1715509907640,-719.29,0.00073424,120]
[326850434,1715509907649,-1228.7,0.00073424,120]
[326850435,1715509907658,-500.0,0.00073424,120]
[326850436,1715509907669,-1264.94,0.00073424,120]
[326850437,1715509907677,-1513.78,0.00073424,120]
[326850438,1715509907686,-673.28,0.00073424,120]
[326850439,1715509907695,-694.76,0.00073424,120]
[326850440,1715509907704,-1272.39,0.00073424,120]
[326850441,1715509907713,-2272.31,0.00073424,120]
[326850442,1715509907722,-11483.2,0.00073424,120]
[326850443,1715509907731,-168.85107645,0.00073424,7]
[326850444,1715509907740,-606.15,0.00073424,120]
[326850445,1715509907749,-765.03,0.00073424,120]
[326850446,1715509907852,-910.45,0.00073424,120]
[326850447,1715509907869,-1594.77,0.00073424,120]
[326850448,1715509907878,-749.73,0.00073424,120]
[326850449,1715509907887,-1094.1,0.00073424,120]
[326850450,1715509907895,-11607.20581297,0.00073424,120]
[326850451,1715509907904,-760.68,0.00073424,120]
[326850452,1715509907913,-1439.15,0.00073424,120]
[326850453,1715509907922,-728.36,0.00073424,120]
[326850454,1715509907931,-554.07,0.00073424,120]
[326850455,1715509907940,-851.93,0.00073424,120]
[326850456,1715509907949,-21061.66,0.00073424,120]
[326850457,1715509907959,-1275.67,0.00073424,120]
[326850458,1715509907971,-697.89,0.00073424,120]
[326850459,1715509907980,-1584.34,0.00073424,120]
[326850460,1715509907989,-557.0,0.00073429,120]
[326850461,1715509907998,-500.0,0.00073972,120]
[326850462,1715509908007,-36102.77668564,0.00074,120]
[326850463,1715509908016,-151.0,0.00074466,120]
[326850464,1715509908025,-500.0,0.0007452,120]
[326850465,1715509908034,-792.18,0.0007452,120]
[326850466,1715509908043,-700.0,0.0007452,120]
[326850467,1715509908052,-614.45675747,0.0007452,120]
[326850468,1715509908061,-687.88,0.0007452,120]
[326850469,1715509908071,-1184.42,0.0007452,120]
[326850470,1715509908080,-622.05,0.0007452,120]
[326850471,1715509908089,-500.0,0.0007452,120]
[326850472,1715509908098,-1188.88,0.0007452,120]
[326850473,1715509908107,-664.65,0.0007452,120]
[326850474,1715509908116,-706.45,0.0007452,120]
[326850475,1715509908125,-589.94,0.0007452,120]
[326850476,1715509908134,-718.87,0.0007452,120]
[326850477,1715509908144,-668.81,0.0007452,120]
[326850478,1715509908153,-1198.11,0.0007452,120]
[326850479,1715509908162,-859.74,0.0007452,120]
[326850480,1715509908171,-1019.78,0.0007452,120]
[326850481,1715509908180,-1222.61,0.0007452,120]
[326850482,1715509908189,-165.0256587,0.0007452,120]
[326850483,1715509908199,-1076.09,0.0007452,4]
[326850484,1715509908211,-777.18,0.0007452,120]
[326850485,1715509908220,-623.85,0.0007452,120]
[326850486,1715509908230,-300.0,0.0007452,7]
[326850487,1715509908239,-879.42,0.0007452,120]
[326850488,1715509908248,-500.0,0.0007452,120]
[326850489,1715509908258,-1022.56,0.0007452,120]
[326850490,1715509908267,-1415.7,0.0007452,120]
[326850491,1715509908276,-702.94,0.0007452,120]
[326850492,1715509908287,-676.96,0.0007452,120]
[326850493,1715509908297,-1146.59,0.0007452,120]
[326850494,1715509908306,-846.45,0.0007452,120]
[326850495,1715509908315,-506.08,0.0007452,120]
[326850496,1715509908325,-694.21,0.0007452,120]
[326850497,1715509908334,-534.57,0.0007452,120]
[326850498,1715509908343,-628.13,0.0007452,120]
[326850499,1715509908353,-563.98,0.0007452,120]
[326850500,1715509908362,-500.0,0.0007452,120]
[326850501,1715509908371,-1333.29,0.0007452,120]
[326850502,1715509908380,-2080.97,0.0007452,120]
[326850503,1715509908390,-697.5,0.0007452,120]
[326850504,1715509908399,-1146.84,0.0007452,120]
[326850505,1715509908408,-500.0,0.0007452,120]
[326850506,1715509908418,-1062.31,0.0007452,120]
[326850507,1715509908427,-887.25,0.0007452,120]
[326850508,1715509908436,-884.99,0.0007452,120]
[326850509,1715509908445,-1945.84,0.0007452,120]
[326850510,1715509908454,-1101.29,0.0007452,120]
[326850511,1715509908463,-683.11,0.0007452,120]
[326850512,1715509908473,-634.75,0.0007452,120]
[326850513,1715509908482,-1202.07,0.0007452,120]
[326850514,1715509908491,-652.77,0.0007452,120]
[326850515,1715509908500,-665.8,0.0007452,120]
[326850516,1715509908510,-2405.12,0.0007452,120]
[326850517,1715509908519,-1296.67,0.0007452,120]
[326850518,1715509908528,-500.0,0.0007452,120]
[326850519,1715509908538,-515.15,0.0007452,120]
[326850520,1715509908547,-1711.77,0.0007452,120]